fUST/lending_fUST_20240316
["ID","MTS","AMOUNT","RATE_DAILY","PERIOD"]
[319011561,1710519033311,-155.13807288,0.00013912,2]
[319011563,1710519033321,-6608.2137998,0.00013913,2]
[319012051,1710519038808,-366.3,0.00013913,2]
[319012320,1710519040840,-17925.4862002,0.00013913,2]
[319012322,1710519040851,-340.450767,0.00013913,2]
[319012324,1710519040862,-3501.36328965,0.00013961,2]
[319012325,1710519040872,-1784.1622972,0.00014136,2]
[319012327,1710519040883,-154.0,0.00014535,2]
[319012330,1710519040895,-154.0,0.00014809,2]
[319012331,1710519040907,-2000.0,0.00014952,2]
[319012334,1710519040919,-152.0,0.00015083,2]
[319012335,1710519040928,-188.76699324,0.000153,2]
[319012337,1710519040938,-3098.04533301,0.000153,2]
[319012340,1710519040948,-5163.58423891,0.00015345,2]
[319012341,1710519040958,-152.0,0.00015357,2]
[319012344,1710519040968,-99915.12178439,0.000154,2]
[319012345,1710519040978,-43410.0,0.000154,2]
[319012347,1710519040988,-1500.0,0.000154,2]
[319012349,1710519040998,-1500.0,0.000154,2]
[319012351,1710519041008,-1500.0,0.000154,2]
[319012354,1710519041023,-1521.47,0.000154,2]
[319012356,1710519041033,-1500.0,0.000154,2]
[319012357,1710519041042,-1500.0,0.000154,2]
[319012359,1710519041053,-1500.0,0.000154,2]
[319012361,1710519041063,-1500.0,0.000154,2]
[319012363,1710519041073,-1032.05835885,0.00015483,2]
[319012365,1710519041083,-950.05445765,0.00015498,2]
[319012367,1710519041093,-155.15515516,0.00015498,2]
[319012369,1710519041102,-326.65088458,0.00015498,2]
[319012371,1710519041112,-1882.92818814,0.00015498,2]
[319012373,1710519041121,-409.37047238,0.00015498,2]
[319012375,1710519041130,-158.48477092,0.00015498,2]
[319012377,1710519041140,-2120.69469478,0.00015498,2]
[319012379,1710519041149,-173.72377652,0.00015498,2]
[319012381,1710519041159,-281.46870911,0.00015498,2]
[319012383,1710519041168,-1474.69226491,0.00015498,2]
[319012385,1710519041178,-250.9988996,0.00015498,2]
[319012387,1710519041187,-253.85678197,0.00015498,2]
[319012389,1710519041196,-404.59380981,0.00015498,2]
[319012391,1710519041206,-422.88613906,0.00015498,2]
[319012393,1710519041216,-155.46105219,0.00015498,2]
[319012395,1710519041225,-428.2787978,0.00015498,2]
[319012397,1710519041234,-155.14428418,0.00015498,2]
[319012399,1710519041243,-155.39631053,0.00015498,2]
[319012401,1710519041253,-155.38724073,0.00015498,2]
[319012403,1710519041268,-884.38898759,0.00015498,2]
[319012405,1710519041277,-215.92501567,0.00015498,2]
[319012407,1710519041286,-155.34569665,0.00015498,2]
[319012409,1710519041296,-524.74757252,0.00015498,2]
[319012411,1710519041305,-319.32881347,0.00015498,2]
[319012413,1710519041315,-558.48918801,0.00015498,2]
[319012415,1710519041325,-778.52901897,0.00015498,2]
[319012417,1710519041334,-301.09802703,0.00015498,2]
[319012419,1710519041343,-15577.80862115,0.00015498,2]
[319012421,1710519041352,-204.85816159,0.00015498,2]
[319012422,1710519041362,-196.43542829,0.00015499,2]
[319012425,1710519041373,-252.51506968,0.00015499,2]
[319012427,1710519041383,-1843.47171606,0.00015499,2]
[319012429,1710519041393,-441.66540862,0.00015499,2]
[319012430,1710519041404,-281.21209698,0.00015499,2]
[319012432,1710519041414,-160.0,0.00015499,2]
[319012433,1710519041425,-160.0,0.00015499,2]
[319012434,1710519041436,-1185739.35264983,0.000155,2]
[319012435,1710519041446,-155.19399249,0.000155,2]
[319012436,1710519041456,-155.3208809,0.000155,2]
[319012437,1710519041466,-137363.93174158,0.000155,2]
[319012438,1710519041478,-155.17411374,0.000155,2]
[319012439,1710519041489,-455722.93224306,0.000155,2]
[319012440,1710519041499,-312.98118137,0.000155,2]
[319012442,1710519041509,-224.84722641,0.000155,2]
[319012443,1710519041525,-904309.81516446,0.000155,2]
[319012445,1710519041536,-146483.05774528,0.000155,2]
[319012447,1710519041547,-2000.0,0.000155,2]
[319012449,1710519041557,-2717412.98691307,0.000155,2]
[319012451,1710519041566,-155.3575652,0.000155,2]
[319012453,1710519041576,-155.0,0.000155,2]
[319012455,1710519041587,-3454524.72301356,0.000155,2]
[319012457,1710519041597,-152.0,0.00015631,2]
[319012459,1710519041607,-200.0,0.00015737,2]
[319012461,1710519041617,-152.0,0.00015905,2]
[319012463,1710519041627,-2000.0,0.00015953,2]
[319012466,1710519041638,-746.39104535,0.00016,2]
[319012468,1710519041648,-620.03753911,0.00016003,2]
[319012470,1710519041660,-154.0,0.00016179,2]
[319012472,1710519041671,-269.36186767,0.000165,2]
[319012474,1710519041681,-582.0,0.000167,2]
[319012476,1710519041691,-200.0,0.00016737,2]
[319012478,1710519041701,-620.00187696,0.00016803,2]
[319012480,1710519041711,-160.0,0.00016853,2]
[319012482,1710519041724,-160.0,0.00016853,2]
[319012484,1710519041734,-2000.0,0.00016955,2]
[319012493,1710519041744,-160.0,0.0001699,2]
[319012495,1710519041827,-160.0,0.0001699,2]
[319012497,1710519041838,-160.0,0.00016999,2]
[319012499,1710519041848,-2007.04702686,0.00017,2]
[319012501,1710519041857,-1874.9921586,0.00017,2]
[319012503,1710519041867,-1947.21963256,0.000176,2]
[319012505,1710519041876,-200.0,0.00017737,2]
[319012507,1710519041886,-3262.83932,0.00017956,2]
[319012509,1710519041897,-160.0,0.00017999,2]
[319012511,1710519041908,-325.33863209,0.00018,2]
[319012513,1710519041917,-7359.38575588,0.00018,2]
[319012515,1710519041926,-9708.21866104,0.00018,4]
[319012517,1710519041937,-174.0,0.00018,2]
[319012519,1710519041946,-1016.22594445,0.00018,2]
[319012521,1710519041955,-200.6803539,0.00018,2]
[319012523,1710519041965,-603.36949198,0.000185,2]
[319012525,1710519041975,-620.04195008,0.00018691,2]
[319012527,1710519041985,-202.15559779,0.000187,2]
[319012529,1710519041995,-200.0,0.00018737,2]
[319012531,1710519042004,-402.0799186,0.00018849,2]
[319012533,1710519042016,-6330.4679446,0.000189,2]
[319012535,1710519042027,-16225.29031247,0.000189,2]
[319012537,1710519042036,-971.52302713,0.00019,2]
[319012539,1710519042045,-155.20160388,0.00019,2]
[319012541,1710519042055,-155.27326585,0.00019,2]
[319012542,1710519042064,-15260.98884788,0.00019,2]
[319012544,1710519042074,-498.22795125,0.00019178,2]
[319012546,1710519042084,-500.0,0.00019178,2]
[319012548,1710519042093,-650.56567681,0.00019178,2]
[319012550,1710519042103,-500.0,0.00019178,2]
[319012552,1710519042112,-500.0,0.00019178,2]
[319012554,1710519042122,-500.0,0.00019178,2]
[319012556,1710519042132,-437.78222901,0.00019178,2]
[319012559,1710519042142,-500.0,0.00019178,2]
[319012561,1710519042152,-500.0,0.00019178,2]
[319012563,1710519042161,-202.71496876,0.00019178,2]
[319012565,1710519042171,-500.0,0.00019178,2]
[319012566,1710519042180,-500.0,0.00019178,2]
[319012569,1710519042190,-500.0,0.00019178,2]
[319012570,1710519042199,-500.0,0.00019178,2]
[319012573,1710519042209,-264.47779028,0.00019178,2]
[319012575,1710519042218,-500.0,0.00019178,2]
[319012577,1710519042228,-500.0,0.00019178,2]
[319012578,1710519042237,-500.0,0.00019178,2]
[319012581,1710519042247,-500.0,0.00019178,2]
[319012582,1710519042256,-500.0,0.00019178,2]
[319012584,1710519042271,-500.0,0.00019178,2]
[319012587,1710519042280,-500.0,0.00019178,2]
[319012589,1710519042290,-500.0,0.00019178,2]
[319012591,1710519042299,-500.0,0.00019178,2]
[319012592,1710519042309,-500.0,0.00019178,2]
[319012594,1710519042319,-500.0,0.00019178,2]
[319012597,1710519042328,-500.0,0.00019178,2]
[319012599,1710519042337,-500.0,0.00019178,2]
[319012601,1710519042347,-500.0,0.00019178,2]
[319012603,1710519042356,-504.45794135,0.00019178,2]
[319012605,1710519042366,-500.0,0.00019178,2]
[319012607,1710519042376,-500.0,0.00019178,2]
[319012608,1710519042385,-500.0,0.00019178,2]
[319012610,1710519042395,-500.0,0.00019178,2]
[319012613,1710519042406,-500.0,0.00019178,2]
[319012615,1710519042416,-500.0,0.00019178,2]
[319012617,1710519042425,-500.0,0.00019178,2]
[319012619,1710519042434,-500.0,0.00019178,2]
[319012621,1710519042444,-500.0,0.00019178,2]
[319012623,1710519042454,-500.0,0.00019178,2]
[319012625,1710519042462,-500.0,0.00019178,2]
[319012627,1710519042472,-500.0,0.00019178,2]
[319012629,1710519042482,-500.0,0.00019178,2]
[319012630,1710519042491,-500.0,0.00019178,2]
[319012632,1710519042501,-500.0,0.00019178,2]
[319012634,1710519042511,-500.0,0.00019178,2]
[319012637,1710519042526,-500.0,0.00019178,2]
[319012639,1710519042536,-500.0,0.00019178,2]
[319012640,1710519042547,-500.0,0.00019178,2]
[319012642,1710519042557,-500.0,0.00019178,2]
[319012644,1710519042567,-500.0,0.00019178,2]
[319012646,1710519042576,-500.0,0.00019178,2]
[319012648,1710519042586,-500.0,0.00019178,2]
[319012650,1710519042596,-500.0,0.00019178,2]
[319012653,1710519042605,-500.0,0.00019178,2]
[319012655,1710519042615,-500.0,0.00019178,2]
[319012657,1710519042626,-500.0,0.00019178,2]
[319012659,1710519042635,-500.0,0.00019178,2]
[319012660,1710519042645,-500.0,0.00019178,2]
[319012663,1710519042654,-500.0,0.00019178,2]
[319012665,1710519042665,-500.0,0.00019178,2]
[319012667,1710519042675,-500.0,0.00019178,2]
[319012669,1710519042685,-371.70393809,0.00019178,2]
[319012671,1710519042694,-500.0,0.00019178,2]
[319012673,1710519042704,-650.0,0.00019178,2]
[319012675,1710519042714,-500.0,0.00019178,2]
[319012677,1710519042723,-500.0,0.00019178,2]
[319012678,1710519042733,-500.0,0.00019178,2]
[319012681,1710519042743,-500.0,0.00019178,2]
[319012683,1710519042754,-500.0,0.00019178,2]
[319012684,1710519042767,-500.0,0.00019178,2]
[319012686,1710519042777,-500.0,0.00019178,2]
[319012688,1710519042794,-500.0,0.00019178,2]
[319012690,1710519042805,-163.71395367,0.00019178,2]
[319012692,1710519042815,-398.53918697,0.00019178,2]
[319012694,1710519042826,-500.0,0.00019178,2]
[319012696,1710519042837,-500.0,0.00019178,2]
[319012698,1710519042847,-500.0,0.00019178,2]
[319012700,1710519042857,-500.0,0.00019178,2]
[319012702,1710519042868,-500.0,0.00019178,2]
[319012704,1710519042879,-500.0,0.00019178,2]
[319012706,1710519042889,-500.0,0.00019178,2]
[319012709,1710519042900,-500.0,0.00019178,2]
[319012710,1710519042913,-500.0,0.00019178,2]
[319012712,1710519042923,-586.90104418,0.00019178,2]
[319012714,1710519042933,-500.0,0.00019178,2]
[319012716,1710519042943,-500.0,0.00019178,2]
[319012719,1710519042953,-500.0,0.00019178,2]
[319012720,1710519042963,-500.0,0.00019178,2]
[319012722,1710519042972,-500.0,0.00019178,2]
[319012724,1710519042981,-500.0,0.00019178,2]
[319012726,1710519042991,-500.0,0.00019178,2]
[319012728,1710519043003,-500.0,0.00019178,2]
[319012732,1710519043013,-200.0,0.00019178,2]
[319012733,1710519043029,-500.0,0.00019178,2]
[319012735,1710519043039,-500.0,0.00019178,2]
[319012738,1710519043050,-500.0,0.00019178,2]
[319012740,1710519043060,-500.0,0.00019178,2]
[319012741,1710519043069,-474.26058027,0.00019178,2]
[319012744,1710519043079,-500.0,0.00019178,2]
[319012746,1710519043091,-500.0,0.00019178,2]
[319012749,1710519043108,-500.0,0.00019178,2]
[319012751,1710519043117,-500.0,0.00019178,2]
[319012753,1710519043126,-500.0,0.00019178,2]
[319012755,1710519043136,-500.0,0.00019178,2]
[319012757,1710519043145,-500.0,0.00019178,2]
[319012759,1710519043157,-500.0,0.00019178,2]
[319012761,1710519043165,-500.0,0.00019178,2]
[319012763,1710519043175,-500.0,0.00019178,2]
[319012765,1710519043186,-485.36158777,0.00019178,2]
[319012768,1710519043195,-374.83187563,0.00019178,2]
[319012771,1710519043205,-501.30233525,0.00019178,2]
[319012773,1710519043214,-500.0,0.00019178,2]
[319012775,1710519043223,-500.0,0.00019178,2]
[319012777,1710519043232,-500.0,0.00019178,2]
[319012780,1710519043241,-500.0,0.00019178,2]
[319012782,1710519043251,-500.0,0.00019178,2]
[319012784,1710519043260,-464.13063294,0.00019178,2]
[319012786,1710519043276,-236.58436976,0.00019178,2]
[319012788,1710519043285,-500.0,0.00019178,2]
[319012790,1710519043294,-341.77778884,0.00019178,2]
[319012792,1710519043303,-500.0,0.00019178,2]
[319012794,1710519043312,-624.10540677,0.00019178,2]
[319012796,1710519043321,-500.0,0.00019178,2]
[319012798,1710519043331,-500.22601956,0.00019178,2]
[319012800,1710519043340,-500.0,0.00019178,2]
[319012802,1710519043350,-500.0,0.00019178,2]
[319012804,1710519043360,-500.0,0.00019178,2]
[319012806,1710519043369,-500.0,0.00019178,2]
[319012808,1710519043379,-500.0,0.00019178,2]
[319012817,1710519043458,-500.0,0.00019178,2]
[319012819,1710519043469,-500.0,0.00019178,2]
[319012822,1710519043480,-290.09433688,0.00019178,2]
[319012823,1710519043489,-500.0,0.00019178,2]
[319012826,1710519043499,-476.57021844,0.00019178,2]
[319012828,1710519043509,-500.0,0.00019178,2]
[319012830,1710519043522,-311.87019673,0.00019178,2]
[319012832,1710519043532,-500.0,0.00019178,2]
[319012834,1710519043542,-500.0,0.00019178,2]
[319012836,1710519043552,-500.0,0.00019178,2]
[319012838,1710519043562,-500.0,0.00019178,2]
[319012840,1710519043571,-500.0,0.00019178,2]
[319012842,1710519043581,-500.0,0.00019178,2]
[319012844,1710519043591,-500.0,0.00019178,2]
[319012846,1710519043600,-500.0,0.00019178,2]
[319012848,1710519043609,-500.0,0.00019178,2]
[319012850,1710519043619,-285.04870184,0.00019178,2]
[319012852,1710519043628,-500.0,0.00019178,2]
[319012854,1710519043638,-500.0,0.00019178,2]
[319012856,1710519043646,-500.0,0.00019178,2]
[319012858,1710519043655,-500.0,0.00019178,2]
[319012860,1710519043665,-525.47512621,0.00019178,2]
[319012862,1710519043674,-500.0,0.00019178,2]
[319012863,1710519043683,-500.0,0.00019178,2]
[319012865,1710519043693,-500.0,0.00019178,2]
[319012867,1710519043702,-500.0,0.00019178,2]
[319012869,1710519043711,-500.0,0.00019178,2]
[319012872,1710519043720,-395.38650276,0.00019178,2]
[319012873,1710519043730,-500.0,0.00019178,2]
[319012875,1710519043739,-500.0,0.00019178,2]
[319012877,1710519043748,-500.0,0.00019178,2]
[319012879,1710519043758,-500.0,0.00019178,2]
[319012882,1710519043771,-500.0,0.00019178,2]
[319012884,1710519043782,-170.52276403,0.00019178,2]
[319012885,1710519043792,-584.05276819,0.00019178,2]
[319012888,1710519043802,-500.0,0.00019178,2]
[319012890,1710519043813,-500.0,0.00019178,2]
[319012892,1710519043826,-500.0,0.00019178,2]
[319012894,1710519043836,-500.0,0.00019178,2]
[319012896,1710519043845,-500.0,0.00019178,2]
[319012898,1710519043855,-500.0,0.00019178,2]
[319012900,1710519043868,-500.0,0.00019178,2]
[319012903,1710519043877,-500.0,0.00019178,2]
[319012906,1710519043887,-500.0,0.00019178,2]
[319012908,1710519043897,-500.0,0.00019178,2]
[319012910,1710519043906,-500.0,0.00019178,2]
[319012912,1710519043915,-500.0,0.00019178,2]
[319012914,1710519043924,-500.0,0.00019178,2]
[319012916,1710519043933,-500.0,0.00019178,2]
[319012918,1710519043942,-240.21895823,0.00019178,2]
[319012920,1710519043951,-500.0,0.00019178,2]
[319012922,1710519043960,-536.62206913,0.00019178,2]
[319012923,1710519043970,-1472.43,0.00019178,2]
[319012924,1710519043979,-1472.43,0.00019178,2]
[319012925,1710519043988,-1472.43,0.00019178,2]
[319012926,1710519043997,-500.0,0.00019178,2]
[319012927,1710519044006,-1472.43,0.00019178,2]
[319012928,1710519044020,-501.41607873,0.00019178,2]
[319012929,1710519044030,-1472.43,0.00019178,2]
[319012930,1710519044040,-1472.43,0.00019178,2]
[319012931,1710519044051,-1472.43,0.00019178,2]
[319012932,1710519044061,-1472.43,0.00019178,2]
[319012933,1710519044071,-1472.43,0.00019178,2]
[319012934,1710519044081,-1472.43,0.00019178,2]
[319012935,1710519044091,-1472.43,0.00019178,2]
[319012936,1710519044101,-1472.43,0.00019178,2]
[319012937,1710519044111,-500.0,0.00019178,2]
[319012938,1710519044120,-500.0,0.00019178,2]
[319012939,1710519044129,-1472.43,0.00019178,2]
[319012940,1710519044139,-500.0,0.00019178,2]
[319012941,1710519044147,-500.0,0.00019178,2]
[319012942,1710519044156,-1472.43,0.00019178,2]
[319012943,1710519044165,-500.0,0.00019178,2]
[319012944,1710519044175,-411.20383273,0.00019178,2]
[319012945,1710519044185,-1472.43,0.00019178,2]
[319012946,1710519044194,-500.0,0.00019178,2]
[319012947,1710519044204,-1472.43,0.00019178,2]
[319012948,1710519044213,-638.8661223,0.00019178,2]
[319012949,1710519044223,-1472.43,0.00019178,2]
[319012950,1710519044232,-1472.43,0.00019178,2]
[319012951,1710519044241,-1472.43,0.00019178,2]
[319012952,1710519044251,-1472.43,0.00019178,2]
[319012953,1710519044260,-1472.43,0.00019178,2]
[319012954,1710519044277,-1472.43,0.00019178,2]
[319012955,1710519044287,-1472.43,0.00019178,2]
[319012956,1710519044296,-1472.4776144,0.00019178,2]
[319012957,1710519044305,-500.0,0.00019178,2]
[319012958,1710519044315,-500.0,0.00019178,2]
[319012959,1710519044325,-500.0,0.00019178,2]
[319012960,1710519044335,-500.0,0.00019178,2]
[319012961,1710519044344,-500.0,0.00019178,2]
[319012962,1710519044354,-500.0,0.00019178,2]
[319012963,1710519044363,-500.0,0.00019178,2]
[319012964,1710519044374,-500.0,0.00019178,2]
[319012965,1710519044383,-500.0,0.00019178,2]
[319012966,1710519044393,-313.35218028,0.00019178,2]
[319012967,1710519044403,-500.0,0.00019178,2]
[319012968,1710519044413,-505.62604514,0.00019178,2]
[319012969,1710519044423,-500.0,0.00019178,2]
[319012970,1710519044433,-500.0,0.00019178,2]
[319012971,1710519044442,-500.0,0.00019178,2]
[319012972,1710519044452,-500.0,0.00019178,2]
[319012973,1710519044462,-500.0,0.00019178,2]
[319012974,1710519044471,-207.75265276,0.00019178,2]
[319012975,1710519044481,-500.0,0.00019178,2]
[319012976,1710519044490,-500.0,0.00019178,2]
[319012977,1710519044500,-343.4451442,0.00019178,2]
[319012978,1710519044510,-500.0,0.00019178,2]
[319012979,1710519044523,-500.0,0.00019178,2]
[319012980,1710519044532,-500.0,0.00019178,2]
[319012981,1710519044541,-500.0,0.00019178,2]
[319012982,1710519044551,-500.0,0.00019178,2]
[319012983,1710519044560,-500.0,0.00019178,2]
[319012984,1710519044569,-512.35502659,0.00019178,2]
[319012985,1710519044579,-500.0,0.00019178,2]
[319012986,1710519044588,-302.33606715,0.00019178,2]
[319012987,1710519044598,-587.62,0.00019178,2]
[319012988,1710519044607,-587.62,0.00019178,2]
[319012989,1710519044617,-587.62,0.00019178,2]
[319012990,1710519044626,-587.62,0.00019178,2]
[319012991,1710519044636,-587.62,0.00019178,2]
[319012992,1710519044646,-587.62,0.00019178,2]
[319012993,1710519044656,-587.62,0.00019178,2]
[319012994,1710519044665,-587.62,0.00019178,2]
[319012995,1710519044674,-587.62,0.00019178,2]
[319012996,1710519044684,-587.62,0.00019178,2]
[319012997,1710519044693,-587.62,0.00019178,2]
[319012998,1710519044703,-587.62,0.00019178,2]
[319012999,1710519044713,-587.62,0.00019178,2]
[319013000,1710519044723,-587.62,0.00019178,2]
[319013001,1710519044732,-587.62,0.00019178,2]
[319013002,1710519044741,-587.62,0.00019178,2]
[319013003,1710519044751,-587.62,0.00019178,2]
[319013004,1710519044760,-587.62,0.00019178,2]
[319013005,1710519044773,-587.62,0.00019178,2]
[319013006,1710519044782,-587.62,0.00019178,2]
[319013007,1710519044792,-587.62,0.00019178,2]
[319013008,1710519044801,-587.62,0.00019178,2]
[319013009,1710519044811,-587.62,0.00019178,2]
[319013010,1710519044822,-587.79309058,0.00019178,2]
[319013011,1710519044831,-497.4291408,0.00019178,2]
[319013012,1710519044841,-500.0,0.00019178,2]
[319013013,1710519044850,-500.0,0.00019178,2]
[319013014,1710519044919,-500.0,0.00019178,2]
[319013015,1710519044937,-500.0,0.00019178,2]
[319013016,1710519044947,-500.0,0.00019178,2]
[319013017,1710519044957,-500.0,0.00019178,2]
[319013018,1710519044966,-500.0,0.00019178,2]
[319013019,1710519044975,-500.0,0.00019178,2]
[319013020,1710519044985,-500.0,0.00019178,2]
[319013021,1710519044994,-500.0,0.00019178,2]
[319013022,1710519045004,-500.0,0.00019178,2]
[319013023,1710519045013,-292.23083046,0.00019178,2]
[319013024,1710519045025,-517.70668416,0.00019178,2]
[319013025,1710519045035,-500.0,0.00019178,2]
[319013026,1710519045044,-500.0,0.00019178,2]
[319013027,1710519045053,-500.0,0.00019178,2]
[319013028,1710519045063,-500.0,0.00019178,2]
[319013029,1710519045073,-500.0,0.00019178,2]
[319013030,1710519045082,-500.0,0.00019178,2]
[319013031,1710519045091,-500.0,0.00019178,2]
[319013032,1710519045101,-500.0,0.00019178,2]
[319013033,1710519045110,-500.0,0.00019178,2]
[319013034,1710519045120,-379.08751815,0.00019178,2]
[319013035,1710519045129,-500.0,0.00019178,2]
[319013036,1710519045139,-500.0,0.00019178,2]
[319013037,1710519045149,-500.0,0.00019178,2]
[319013038,1710519045159,-500.0,0.00019178,2]
[319013039,1710519045168,-500.0,0.00019178,2]
[319013040,1710519045178,-503.32024016,0.00019178,2]
[319013041,1710519045187,-500.0,0.00019178,2]
[319013042,1710519045196,-500.0,0.00019178,2]
[319013043,1710519045205,-500.0,0.00019178,2]
[319013044,1710519045215,-500.0,0.00019178,2]
[319013045,1710519045224,-500.0,0.00019178,2]
[319013046,1710519045233,-500.0,0.00019178,2]
[319013047,1710519045243,-500.0,0.00019178,2]
[319013048,1710519045253,-162.20189187,0.00019178,2]
[319013049,1710519045262,-500.0,0.00019178,2]
[319013050,1710519045277,-500.0,0.00019178,2]
[319013051,1710519045287,-500.0,0.00019178,2]
[319013052,1710519045296,-500.0,0.00019178,2]
[319013053,1710519045306,-500.0,0.00019178,2]
[319013054,1710519045315,-500.0,0.00019178,2]
[319013055,1710519045325,-500.0,0.00019178,2]
[319013056,1710519045334,-404.23192438,0.00019178,2]
[319013057,1710519045344,-574.79,0.00019178,2]
[319013058,1710519045354,-574.79,0.00019178,2]
[319013059,1710519045364,-649.55876139,0.00019178,2]
[319013060,1710519045373,-574.79,0.00019178,2]
[319013061,1710519045383,-574.79,0.00019178,2]
[319013062,1710519045393,-574.79,0.00019178,2]
[319013063,1710519045402,-574.79,0.00019178,2]
[319013064,1710519045412,-574.79,0.00019178,2]
[319013065,1710519045421,-574.79,0.00019178,2]
[319013066,1710519045431,-500.0,0.00019178,2]
[319013067,1710519045441,-574.79,0.00019178,2]
[319013068,1710519045451,-500.0,0.00019178,2]
[319013069,1710519045461,-574.79,0.00019178,2]
[319013070,1710519045470,-500.0,0.00019178,2]
[319013071,1710519045481,-574.79,0.00019178,2]
[319013072,1710519045490,-500.0,0.00019178,2]
[319013073,1710519045500,-500.0,0.00019178,2]
[319013074,1710519045510,-574.79,0.00019178,2]
[319013075,1710519045520,-500.0,0.00019178,2]
[319013076,1710519045530,-574.79,0.00019178,2]
[319013077,1710519045539,-500.0,0.00019178,2]
[319013078,1710519045548,-574.79,0.00019178,2]
[319013079,1710519045557,-500.0,0.00019178,2]
[319013080,1710519045566,-574.79,0.00019178,2]
[319013081,1710519045576,-500.0,0.00019178,2]
[319013082,1710519045586,-574.79,0.00019178,2]
[319013083,1710519045595,-500.0,0.00019178,2]
[319013084,1710519045605,-574.79,0.00019178,2]
[319013085,1710519045614,-287.9171198,0.00019178,2]
[319013086,1710519045623,-574.79,0.00019178,2]
[319013087,1710519045633,-574.79,0.00019178,2]
[319013088,1710519045642,-574.79,0.00019178,2]
[319013089,1710519045652,-574.79,0.00019178,2]
[319013090,1710519045662,-574.79,0.00019178,2]
[319013091,1710519045671,-574.79,0.00019178,2]
[319013092,1710519045681,-575.012009,0.00019178,2]
[319013093,1710519045690,-250.428531,0.00019178,2]
[319013094,1710519045699,-521.39,0.00019178,2]
[319013095,1710519045709,-521.39,0.00019178,2]
[319013096,1710519045718,-521.39,0.00019178,2]
[319013097,1710519045728,-521.39,0.00019178,2]
[319013098,1710519045737,-521.39,0.00019178,2]
[319013099,1710519045747,-521.39,0.00019178,2]
[319013100,1710519045756,-521.39,0.00019178,2]
[319013101,1710519045768,-521.39,0.00019178,2]
[319013102,1710519045776,-521.39,0.00019178,2]
[319013103,1710519045791,-521.39,0.00019178,2]
[319013104,1710519045801,-521.39,0.00019178,2]
[319013105,1710519045810,-521.39,0.00019178,2]
[319013106,1710519045819,-521.39,0.00019178,2]
[319013107,1710519045829,-521.39,0.00019178,2]
[319013108,1710519045838,-521.39,0.00019178,2]
[319013109,1710519045847,-521.39,0.00019178,2]
[319013110,1710519045857,-521.39,0.00019178,2]
[319013111,1710519045866,-521.39,0.00019178,2]
[319013112,1710519045876,-521.39,0.00019178,2]
[319013113,1710519045886,-521.39,0.00019178,2]
[319013114,1710519045895,-521.39,0.00019178,2]
[319013115,1710519045905,-521.39,0.00019178,2]
[319013116,1710519045914,-521.39,0.00019178,2]
[319013117,1710519045923,-521.39148979,0.00019178,2]
[319013118,1710519045933,-500.0,0.00019178,2]
[319013119,1710519045943,-500.0,0.00019178,2]
[319013120,1710519045953,-500.0,0.00019178,2]
[319013121,1710519045962,-500.0,0.00019178,2]
[319013122,1710519045972,-500.0,0.00019178,2]
[319013123,1710519045982,-500.0,0.00019178,2]